[Event "Titled Tuesday Blitz August 1 Early 2023"]
[White "Kim, Yoon-Young"]
[Black "Tarasova, Viktoriya"]
[WhiteFideId "30908779"]
[BlackFideId "4175840"]
[WhiteElo "2700"]
[BlackElo "2382"]
[Result "1-0"]
[Round "2"]
[TimeControl "180+1"]
[Date "2023.08.01"]
[WhiteClock "0:00:09"]
[BlackClock "0:00:10"]
[Board "156"]

1. d4 {[%clk 0:03:00]}  Nf6 {[%clk 0:03:00]} 2. c4 {[%clk 0:03:00]}  e6 {[%clk 0:03:00]} 3. g3 {[%clk 0:03:00]}  d5 {[%clk 0:02:59]} 4. Bg2 {[%clk 0:03:01]}  Bb4+ {[%clk 0:02:59]} 5. Nc3 {[%clk 0:02:57]}  O-O {[%clk 0:02:59]} 6. Nf3 {[%clk 0:02:57]}  dxc4 {[%clk 0:02:58]} 7. O-O {[%clk 0:02:58]}  Nc6 {[%clk 0:02:55]} 8. a3 {[%clk 0:02:58]}  Be7 {[%clk 0:02:51]} 9. e4 {[%clk 0:02:56]}  Rb8 {[%clk 0:02:51]} 10. Qe2 {[%clk 0:02:49]}  b5 {[%clk 0:02:50]} 11. Rd1 {[%clk 0:02:49]}  Na5 {[%clk 0:02:49]} 12. d5 {[%clk 0:02:45]}  exd5 {[%clk 0:02:45]} 13. e5 {[%clk 0:02:45]}  Nd7 {[%clk 0:02:37]} 14. Nxd5 {[%clk 0:02:41]}  c6 {[%clk 0:02:31]} 15. Nxe7+ {[%clk 0:02:07]}  Qxe7 {[%clk 0:02:30]} 16. Bf4 {[%clk 0:02:08]}  Rb7 {[%clk 0:02:13]} 17. Nd4 {[%clk 0:02:01]}  Nc5 {[%clk 0:02:07]} 18. e6 {[%clk 0:01:08]}  Nxe6 {[%clk 0:02:01]} 19. Re1 {[%clk 0:00:39]}  Qc5 {[%clk 0:01:47]} 20. Nxe6 {[%clk 0:00:31]}  Bxe6 {[%clk 0:01:47]} 21. Rad1 {[%clk 0:00:32]}  Qf5 {[%clk 0:01:37]} 22. Be4 {[%clk 0:00:30]}  Qf6 {[%clk 0:01:16]} 23. Be5 {[%clk 0:00:28]}  Qh6 {[%clk 0:01:15]} 24. Bc3 {[%clk 0:00:25]}  Nb3 {[%clk 0:01:13]} 25. Bxc6 {[%clk 0:00:25]}  Rc7 {[%clk 0:01:09]} 26. Be4 {[%clk 0:00:24]}  Qg5 {[%clk 0:00:58]} 27. Rd6 {[%clk 0:00:22]}  Bg4 {[%clk 0:00:53]} 28. f3 {[%clk 0:00:20]}  Qc5+ {[%clk 0:00:52]} 29. Kg2 {[%clk 0:00:17]}  Qxd6 {[%clk 0:00:33]} 30. Be5 {[%clk 0:00:17]}  Qd2 {[%clk 0:00:30]} 31. Bxc7 {[%clk 0:00:16]}  Qxe2+ {[%clk 0:00:27]} 32. Rxe2 {[%clk 0:00:17]}  Be6 {[%clk 0:00:27]} 33. Be5 {[%clk 0:00:17]}  Rd8 {[%clk 0:00:25]} 34. Bc3 {[%clk 0:00:17]}  h6 {[%clk 0:00:20]} 35. g4 {[%clk 0:00:16]}  Nc5 {[%clk 0:00:20]} 36. Bc2 {[%clk 0:00:15]}  Nd3 {[%clk 0:00:19]} 37. Kg3 {[%clk 0:00:16]}  Kh7 {[%clk 0:00:17]} 38. h4 {[%clk 0:00:16]}  g6 {[%clk 0:00:17]} 39. Bf6 {[%clk 0:00:11]}  Rd7 {[%clk 0:00:17]} 40. f4 {[%clk 0:00:11]}  a5 {[%clk 0:00:16]} 41. Bc3 {[%clk 0:00:10]}  b4 {[%clk 0:00:15]} 42. axb4 {[%clk 0:00:11]}  axb4 {[%clk 0:00:15]} 43. Bf6 {[%clk 0:00:11]}  b3 {[%clk 0:00:15]} 44. Bb1 {[%clk 0:00:12]}  Nc5 {[%clk 0:00:13]} 45. h5 {[%clk 0:00:11]}  Bd5 {[%clk 0:00:12]} 46. hxg6+ {[%clk 0:00:11]}  fxg6 {[%clk 0:00:12]} 47. g5 {[%clk 0:00:10]}  hxg5 {[%clk 0:00:12]} 48. fxg5 {[%clk 0:00:09]}  Bg8 {[%clk 0:00:10]} 49. Rh2# {[%clk 0:00:09]} 1-0


[Site "https://www.chess.com"]

[Event "Titled Tuesday Blitz August 1 Early 2023"]
[White "Riku-gan"]
[Black "Amanov, Zhanibek"]
[BlackFideId "13700189"]
[WhiteElo "2684"]
[BlackElo "2381"]
[Result "1/2-1/2"]
[Round "2"]
[TimeControl "180+1"]
[Date "2023.08.01"]
[WhiteClock "0:00:54"]
[BlackClock "0:00:21"]
[Board "158"]

1. d4 {[%clk 0:03:00]}  d5 {[%clk 0:02:59]} 2. Nc3 {[%clk 0:03:01]}  Nf6 {[%clk 0:02:57]} 3. Bg5 {[%clk 0:03:01]}  c6 {[%clk 0:02:48]} 4. Qd3 {[%clk 0:03:00]}  Bg4 {[%clk 0:02:45]} 5. f3 {[%clk 0:02:57]}  Bh5 {[%clk 0:02:45]} 6. e4 {[%clk 0:02:56]}  Bg6 {[%clk 0:02:42]} 7. O-O-O {[%clk 0:02:52]}  dxe4 {[%clk 0:02:42]} 8. fxe4 {[%clk 0:02:53]}  e5 {[%clk 0:02:36]} 9. dxe5 {[%clk 0:02:49]}  Qxd3 {[%clk 0:02:36]} 10. Rxd3 {[%clk 0:02:49]}  Nfd7 {[%clk 0:02:23]} 11. Nf3 {[%clk 0:02:46]}  Be7 {[%clk 0:02:18]} 12. Bxe7 {[%clk 0:02:38]}  Kxe7 {[%clk 0:02:19]} 13. Rd2 {[%clk 0:02:35]}  Nc5 {[%clk 0:02:10]} 14. Bd3 {[%clk 0:02:35]}  Nbd7 {[%clk 0:02:04]} 15. h4 {[%clk 0:02:34]}  h6 {[%clk 0:01:54]} 16. b4 {[%clk 0:02:34]}  Nxd3+ {[%clk 0:01:52]} 17. cxd3 {[%clk 0:02:35]}  Nb6 {[%clk 0:01:48]} 18. h5 {[%clk 0:02:12]}  Bh7 {[%clk 0:01:47]} 19. Kc2 {[%clk 0:02:08]}  a5 {[%clk 0:01:45]} 20. a3 {[%clk 0:02:08]}  axb4 {[%clk 0:01:28]} 21. axb4 {[%clk 0:02:09]}  Ra3 {[%clk 0:01:23]} 22. Kb2 {[%clk 0:02:04]}  Rha8 {[%clk 0:01:23]} 23. Nd4 {[%clk 0:02:04]}  R3a7 {[%clk 0:01:08]} 24. Nf5+ {[%clk 0:02:00]}  Ke6 {[%clk 0:01:04]} 25. Nxg7+ {[%clk 0:01:59]}  Kxe5 {[%clk 0:01:04]} 26. Nf5 {[%clk 0:02:00]}  Bxf5 {[%clk 0:00:59]} 27. exf5 {[%clk 0:02:01]}  Na4+ {[%clk 0:00:51]} 28. Nxa4 {[%clk 0:02:00]}  Rxa4 {[%clk 0:00:51]} 29. Re1+ {[%clk 0:01:54]}  Kxf5 {[%clk 0:00:48]} 30. Kc3 {[%clk 0:01:52]}  Ra3+ {[%clk 0:00:42]} 31. Kd4 {[%clk 0:01:50]}  Rd8+ {[%clk 0:00:39]} 32. Kc4 {[%clk 0:01:47]}  b5+ {[%clk 0:00:37]} 33. Kc5 {[%clk 0:01:47]}  Rc3+ {[%clk 0:00:38]} 34. Kb6 {[%clk 0:01:47]}  Rd4 {[%clk 0:00:39]} 35. Rf2+ {[%clk 0:01:45]}  Kg5 {[%clk 0:00:38]} 36. Re4 {[%clk 0:01:45]}  Rcxd3 {[%clk 0:00:35]} 37. Re5+ {[%clk 0:01:44]}  Kg4 {[%clk 0:00:33]} 38. Rxf7 {[%clk 0:01:44]}  Rxb4 {[%clk 0:00:32]} 39. Kxc6 {[%clk 0:01:44]}  Rbd4 {[%clk 0:00:29]} 40. Rg7+ {[%clk 0:01:40]}  Kh4 {[%clk 0:00:29]} 41. Re1 {[%clk 0:01:34]}  Rc3+ {[%clk 0:00:20]} 42. Kb6 {[%clk 0:01:33]}  Rg4 {[%clk 0:00:17]} 43. Rh1+ {[%clk 0:01:30]}  Kg3 {[%clk 0:00:18]} 44. Rh7 {[%clk 0:01:03]}  Kxg2 {[%clk 0:00:17]} 45. Rb1 {[%clk 0:01:02]}  b4 {[%clk 0:00:18]} 46. Rxh6 {[%clk 0:01:00]}  b3 {[%clk 0:00:18]} 47. Rc6 {[%clk 0:00:54]}  Rb4+ {[%clk 0:00:18]} 48. Ka5 {[%clk 0:00:52]}  Rxc6 {[%clk 0:00:18]} 49. Kxb4 {[%clk 0:00:52]}  Rh6 {[%clk 0:00:18]} 50. Rb2+ {[%clk 0:00:51]}  Kg3 {[%clk 0:00:18]} 51. Rxb3+ {[%clk 0:00:51]}  Kg4 {[%clk 0:00:18]} 52. Kc4 {[%clk 0:00:51]}  Kxh5 {[%clk 0:00:19]} 53. Kd5 {[%clk 0:00:51]}  Rg6 {[%clk 0:00:20]} 54. Ke5 {[%clk 0:00:51]}  Rg5+ {[%clk 0:00:20]} 55. Kf6 {[%clk 0:00:52]}  Rg1 {[%clk 0:00:20]} 56. Rb8 {[%clk 0:00:50]}  Rf1+ {[%clk 0:00:20]} 57. Ke5 {[%clk 0:00:51]}  Re1+ {[%clk 0:00:21]} 58. Kf4 {[%clk 0:00:52]}  Rf1+ {[%clk 0:00:21]} 59. Ke3 {[%clk 0:00:52]}  Re1+ {[%clk 0:00:21]} 60. Kf2 {[%clk 0:00:53]}  Re6 {[%clk 0:00:21]} 61. Rg8 {[%clk 0:00:53]}  Rg6 {[%clk 0:00:19]} 62. Rf8 {[%clk 0:00:53]}  Kg5 {[%clk 0:00:19]} 63. Kf3 {[%clk 0:00:53]}  Rf6+ {[%clk 0:00:20]} 64. Rxf6 {[%clk 0:00:54]}  Kxf6 {[%clk 0:00:21]} 1/2-1/2


[Site "https://www.chess.com"]

[Event "Titled Tuesday Blitz August 1 Early 2023"]
[White "Koshulyan, Egor A."]
[Black "Fisabilillah, Ummi"]
[WhiteFideId "24237000"]
[BlackFideId "7104804"]
[WhiteElo "2676"]
[BlackElo "2377"]
[Result "0-1"]
[Round "2"]
[TimeControl "180+1"]
[Date "2023.08.01"]
[WhiteClock "0:01:17"]
[BlackClock "0:01:21"]
[Board "159"]

1. e4 {[%clk 0:02:57]}  d5 {[%clk 0:02:56]} 2. exd5 {[%clk 0:02:57]}  Qxd5 {[%clk 0:02:57]} 3. Nc3 {[%clk 0:02:57]}  Qa5 {[%clk 0:02:58]} 4. d4 {[%clk 0:02:56]}  c6 {[%clk 0:02:58]} 5. Nf3 {[%clk 0:02:56]}  Bf5 {[%clk 0:02:59]} 6. Bc4 {[%clk 0:02:56]}  e6 {[%clk 0:02:59]} 7. O-O {[%clk 0:02:56]}  Nf6 {[%clk 0:03:00]} 8. Re1 {[%clk 0:02:48]}  Bb4 {[%clk 0:02:56]} 9. Bd2 {[%clk 0:02:45]}  O-O {[%clk 0:02:55]} 10. Ne5 {[%clk 0:02:24]}  Nbd7 {[%clk 0:02:49]} 11. a3 {[%clk 0:02:22]}  Bxc3 {[%clk 0:02:48]} 12. Bxc3 {[%clk 0:02:23]}  Qc7 {[%clk 0:02:49]} 13. Nf3 {[%clk 0:02:20]}  Bg4 {[%clk 0:02:45]} 14. Qd3 {[%clk 0:02:18]}  Rad8 {[%clk 0:02:45]} 15. Qe3 {[%clk 0:02:18]}  Nb6 {[%clk 0:02:35]} 16. Ne5 {[%clk 0:02:10]}  Nxc4 {[%clk 0:02:23]} 17. Nxc4 {[%clk 0:02:11]}  Nd5 {[%clk 0:02:23]} 18. Qd2 {[%clk 0:02:09]}  Rfe8 {[%clk 0:02:18]} 19. Ne5 {[%clk 0:02:09]}  Bf5 {[%clk 0:02:17]} 20. Rad1 {[%clk 0:02:04]}  h6 {[%clk 0:02:04]} 21. b4 {[%clk 0:01:58]}  Qe7 {[%clk 0:01:57]} 22. Bb2 {[%clk 0:01:56]}  Qg5 {[%clk 0:01:48]} 23. Qe2 {[%clk 0:01:32]}  Nf4 {[%clk 0:01:46]} 24. Qf3 {[%clk 0:01:30]}  Bxc2 {[%clk 0:01:40]} 25. Bc1 {[%clk 0:01:30]}  Bxd1 {[%clk 0:01:36]} 26. Rxd1 {[%clk 0:01:31]}  Nh3+ {[%clk 0:01:30]} 27. Qxh3 {[%clk 0:01:30]}  Qxe5 {[%clk 0:01:31]} 28. Qg4 {[%clk 0:01:24]}  Qf5 {[%clk 0:01:29]} 29. Qg3 {[%clk 0:01:21]}  Qg6 {[%clk 0:01:27]} 30. Qc7 {[%clk 0:01:21]}  e5 {[%clk 0:01:21]} 31. Bf4 {[%clk 0:01:17]} 0-1


[Site "https://www.chess.com"]

[Event "Titled Tuesday Blitz August 1 Early 2023"]
[White "Spichkin, Alexander"]
[Black "Rosen, Eric"]
[WhiteFideId "4144074"]
[BlackFideId "2032562"]
[WhiteElo "2375"]
[BlackElo "2671"]
[Result "0-1"]
[Round "2"]
[TimeControl "180+1"]
[Date "2023.08.01"]
[WhiteClock "0:00:08"]
[BlackClock "0:00:07"]
[Board "160"]

1. f4 {[%clk 0:02:57]}  d5 {[%clk 0:02:56]} 2. Nf3 {[%clk 0:02:56]}  g6 {[%clk 0:02:57]} 3. e3 {[%clk 0:02:55]}  Bg7 {[%clk 0:02:57]} 4. Be2 {[%clk 0:02:55]}  Nh6 {[%clk 0:02:54]} 5. O-O {[%clk 0:02:56]}  O-O {[%clk 0:02:55]} 6. d3 {[%clk 0:02:54]}  b6 {[%clk 0:02:53]} 7. Qe1 {[%clk 0:02:54]}  Bb7 {[%clk 0:02:53]} 8. Nbd2 {[%clk 0:02:51]}  Nd7 {[%clk 0:02:53]} 9. e4 {[%clk 0:02:49]}  dxe4 {[%clk 0:02:43]} 10. dxe4 {[%clk 0:02:48]}  e5 {[%clk 0:02:42]} 11. fxe5 {[%clk 0:02:34]}  Nxe5 {[%clk 0:02:40]} 12. c3 {[%clk 0:02:32]}  Nhg4 {[%clk 0:02:35]} 13. Nxe5 {[%clk 0:02:30]}  Nxe5 {[%clk 0:02:35]} 14. Qg3 {[%clk 0:02:23]}  Qe7 {[%clk 0:02:32]} 15. Kh1 {[%clk 0:02:10]}  Rad8 {[%clk 0:02:31]} 16. Nf3 {[%clk 0:02:09]}  Bxe4 {[%clk 0:02:26]} 17. Bg5 {[%clk 0:01:59]}  f6 {[%clk 0:01:54]} 18. Nxe5 {[%clk 0:01:55]}  fxg5 {[%clk 0:01:40]} 19. Bc4+ {[%clk 0:01:54]}  Bd5 {[%clk 0:01:40]} 20. Nc6 {[%clk 0:01:50]}  Qc5 {[%clk 0:01:01]} 21. Bxd5+ {[%clk 0:01:44]}  Rxd5 {[%clk 0:00:57]} 22. Rxf8+ {[%clk 0:01:36]}  Bxf8 {[%clk 0:00:47]} 23. Nd4 {[%clk 0:01:31]}  Qd6 {[%clk 0:00:43]} 24. Qf3 {[%clk 0:01:28]}  c5 {[%clk 0:00:33]} 25. Nb5 {[%clk 0:01:19]}  Qd8 {[%clk 0:00:30]} 26. Rf1 {[%clk 0:01:18]}  Rf5 {[%clk 0:00:29]} 27. Qd1 {[%clk 0:01:16]}  Qd2 {[%clk 0:00:22]} 28. Qb3+ {[%clk 0:01:09]}  Kg7 {[%clk 0:00:19]} 29. Rg1 {[%clk 0:01:10]}  a6 {[%clk 0:00:16]} 30. Nc7 {[%clk 0:01:09]}  Bd6 {[%clk 0:00:10]} 31. Ne8+ {[%clk 0:01:07]}  Kh6 {[%clk 0:00:09]} 32. Nxd6 {[%clk 0:01:06]}  Qxd6 {[%clk 0:00:09]} 33. Qc4 {[%clk 0:01:06]}  b5 {[%clk 0:00:08]} 34. Qe2 {[%clk 0:01:03]}  Rf4 {[%clk 0:00:07]} 35. a3 {[%clk 0:01:00]}  c4 {[%clk 0:00:07]} 36. Qe8 {[%clk 0:01:00]}  Rh4 {[%clk 0:00:06]} 37. h3 {[%clk 0:00:56]}  Qg3 {[%clk 0:00:04]} 38. Qf8+ {[%clk 0:00:46]}  Kh5 {[%clk 0:00:04]} 39. Qc8 {[%clk 0:00:46]}  g4 {[%clk 0:00:03]} 40. Qc5+ {[%clk 0:00:41]}  Kh6 {[%clk 0:00:02]} 41. Qf8+ {[%clk 0:00:37]}  Kh5 {[%clk 0:00:03]} 42. Qf1 {[%clk 0:00:36]}  gxh3 {[%clk 0:00:02]} 43. Qd1+ {[%clk 0:00:34]}  Kh6 {[%clk 0:00:02]} 44. Qd2+ {[%clk 0:00:34]}  Qg5 {[%clk 0:00:03]} 45. Qxg5+ {[%clk 0:00:31]}  Kxg5 {[%clk 0:00:04]} 46. gxh3+ {[%clk 0:00:31]}  Kf5 {[%clk 0:00:05]} 47. Kh2 {[%clk 0:00:31]}  Rf4 {[%clk 0:00:05]} 48. Rg2 {[%clk 0:00:31]}  h5 {[%clk 0:00:05]} 49. Kg3 {[%clk 0:00:32]}  g5 {[%clk 0:00:05]} 50. Rd2 {[%clk 0:00:32]}  h4+ {[%clk 0:00:04]} 51. Kg2 {[%clk 0:00:31]}  Re4 {[%clk 0:00:05]} 52. Rd5+ {[%clk 0:00:31]}  Kf4 {[%clk 0:00:05]} 53. Rd2 {[%clk 0:00:29]}  Re3 {[%clk 0:00:05]} 54. Rf2+ {[%clk 0:00:30]}  Ke4 {[%clk 0:00:06]} 55. Kh2 {[%clk 0:00:28]}  Kd3 {[%clk 0:00:06]} 56. Rf6 {[%clk 0:00:24]}  Re2+ {[%clk 0:00:06]} 57. Kh1 {[%clk 0:00:24]}  Rxb2 {[%clk 0:00:06]} 58. Rxa6 {[%clk 0:00:25]}  Kxc3 {[%clk 0:00:06]} 59. Ra5 {[%clk 0:00:26]}  Kd2 {[%clk 0:00:06]} 60. a4 {[%clk 0:00:26]}  bxa4 {[%clk 0:00:06]} 61. Rd5+ {[%clk 0:00:26]}  Ke3 {[%clk 0:00:06]} 62. Rxg5 {[%clk 0:00:19]}  c3 {[%clk 0:00:05]} 63. Rc5 {[%clk 0:00:18]}  Kd3 {[%clk 0:00:06]} 64. Rd5+ {[%clk 0:00:18]}  Kc4 {[%clk 0:00:06]} 65. Rg5 {[%clk 0:00:15]}  c2 {[%clk 0:00:06]} 66. Rg4+ {[%clk 0:00:15]}  Kb3 {[%clk 0:00:06]} 67. Rg2 {[%clk 0:00:13]}  c1=Q+ {[%clk 0:00:06]} 68. Kh2 {[%clk 0:00:14]}  Rxg2+ {[%clk 0:00:07]} 69. Kxg2 {[%clk 0:00:08]}  a3 {[%clk 0:00:07]} 0-1


[Site "https://www.chess.com"]

[Event "Titled Tuesday Blitz August 1 Early 2023"]
[White "Kvaloy, Aksel Bu"]
[Black "Bueno, Alfeu Junior Varela"]
[WhiteFideId "1528815"]
[BlackFideId "2108879"]
[WhiteElo "2646"]
[BlackElo "2374"]
[Result "0-1"]
[Round "2"]
[TimeControl "180+1"]
[Date "2023.08.01"]
[WhiteClock "0:01:12"]
[BlackClock "0:00:42"]
[Board "162"]

1. b3 {[%clk 0:03:00]}  d5 {[%clk 0:02:49]} 2. Bb2 {[%clk 0:03:00]}  Nf6 {[%clk 0:02:48]} 3. e3 {[%clk 0:03:01]}  c5 {[%clk 0:02:47]} 4. f4 {[%clk 0:03:01]}  a6 {[%clk 0:02:46]} 5. Nf3 {[%clk 0:03:01]}  Bg4 {[%clk 0:02:46]} 6. Be2 {[%clk 0:03:02]}  Bxf3 {[%clk 0:02:46]} 7. Bxf3 {[%clk 0:03:01]}  Nc6 {[%clk 0:02:46]} 8. O-O {[%clk 0:03:01]}  e6 {[%clk 0:02:47]} 9. d3 {[%clk 0:03:00]}  Bd6 {[%clk 0:02:39]} 10. Be2 {[%clk 0:02:54]}  O-O {[%clk 0:02:35]} 11. Nd2 {[%clk 0:02:48]}  e5 {[%clk 0:02:34]} 12. fxe5 {[%clk 0:02:28]}  Bxe5 {[%clk 0:02:29]} 13. Bxe5 {[%clk 0:02:28]}  Nxe5 {[%clk 0:02:28]} 14. h3 {[%clk 0:02:17]}  Qe7 {[%clk 0:02:17]} 15. Qe1 {[%clk 0:02:15]}  Rfe8 {[%clk 0:02:09]} 16. Qg3 {[%clk 0:02:08]}  Ng6 {[%clk 0:01:44]} 17. Rf3 {[%clk 0:02:03]}  Qe5 {[%clk 0:01:44]} 18. Qf2 {[%clk 0:01:58]}  Qxa1+ {[%clk 0:01:43]} 19. Kh2 {[%clk 0:01:55]}  Qe5+ {[%clk 0:01:41]} 20. g3 {[%clk 0:01:53]}  b5 {[%clk 0:01:35]} 21. Nf1 {[%clk 0:01:51]}  Re7 {[%clk 0:01:27]} 22. Kg2 {[%clk 0:01:48]}  Rae8 {[%clk 0:01:27]} 23. g4 {[%clk 0:01:48]}  Qg5 {[%clk 0:01:25]} 24. Kh2 {[%clk 0:01:38]}  h5 {[%clk 0:01:16]} 25. Rf5 {[%clk 0:01:35]}  Qh4 {[%clk 0:01:13]} 26. Qxh4 {[%clk 0:01:19]}  Nxh4 {[%clk 0:01:14]} 27. Rf2 {[%clk 0:01:19]}  hxg4 {[%clk 0:01:11]} 28. Kg3 {[%clk 0:01:19]}  Ng6 {[%clk 0:01:01]} 29. hxg4 {[%clk 0:01:19]}  a5 {[%clk 0:00:56]} 30. c3 {[%clk 0:01:14]}  a4 {[%clk 0:00:56]} 31. d4 {[%clk 0:01:14]}  axb3 {[%clk 0:00:55]} 32. axb3 {[%clk 0:01:14]}  Ne4+ {[%clk 0:00:50]} 33. Kg2 {[%clk 0:01:14]}  Nxf2 {[%clk 0:00:50]} 34. Kxf2 {[%clk 0:01:15]}  cxd4 {[%clk 0:00:48]} 35. cxd4 {[%clk 0:01:16]}  b4 {[%clk 0:00:46]} 36. Bd3 {[%clk 0:01:16]}  Rc8 {[%clk 0:00:44]} 37. Ng3 {[%clk 0:01:15]}  Rc3 {[%clk 0:00:43]} 38. Nf5 {[%clk 0:01:12]}  Rxd3 {[%clk 0:00:42]} 0-1


[Site "https://www.chess.com"]

[Event "Titled Tuesday Blitz August 1 Early 2023"]
[White "brm72"]
[Black "Lopez Gracia, Fernando"]
[BlackFideId "2207184"]
[WhiteElo "2606"]
[BlackElo "2365"]
[Result "1-0"]
[Round "2"]
[TimeControl "180+1"]
[Date "2023.08.01"]
[WhiteClock "0:00:24"]
[BlackClock "0:00:14"]
[Board "169"]

1. e4 {[%clk 0:03:00]}  c5 {[%clk 0:02:57]} 2. Nf3 {[%clk 0:03:01]}  e6 {[%clk 0:02:57]} 3. d4 {[%clk 0:03:01]}  cxd4 {[%clk 0:02:58]} 4. Nxd4 {[%clk 0:03:02]}  Nc6 {[%clk 0:02:57]} 5. Nc3 {[%clk 0:03:02]}  Qc7 {[%clk 0:02:58]} 6. Be3 {[%clk 0:03:02]}  a6 {[%clk 0:02:57]} 7. Qd2 {[%clk 0:03:01]}  Nf6 {[%clk 0:02:56]} 8. f3 {[%clk 0:03:02]}  b5 {[%clk 0:02:56]} 9. O-O-O {[%clk 0:03:01]}  Bb7 {[%clk 0:02:53]} 10. g4 {[%clk 0:03:00]}  Nxd4 {[%clk 0:02:52]} 11. Bxd4 {[%clk 0:03:00]}  Rc8 {[%clk 0:02:43]} 12. Kb1 {[%clk 0:02:58]}  d5 {[%clk 0:02:35]} 13. g5 {[%clk 0:02:54]}  Nd7 {[%clk 0:02:09]} 14. exd5 {[%clk 0:02:52]}  e5 {[%clk 0:01:58]} 15. Be3 {[%clk 0:02:30]}  Bb4 {[%clk 0:01:56]} 16. Bd3 {[%clk 0:02:13]}  g6 {[%clk 0:01:29]} 17. Be4 {[%clk 0:02:09]}  Bxc3 {[%clk 0:01:20]} 18. Qxc3 {[%clk 0:02:07]}  Qxc3 {[%clk 0:01:20]} 19. bxc3 {[%clk 0:02:08]}  Rxc3 {[%clk 0:01:19]} 20. Bc1 {[%clk 0:02:07]}  O-O {[%clk 0:01:15]} 21. Bb2 {[%clk 0:02:08]}  Rc4 {[%clk 0:01:10]} 22. Bd3 {[%clk 0:02:00]}  Rf4 {[%clk 0:01:00]} 23. Be4 {[%clk 0:01:59]}  Re8 {[%clk 0:00:47]} 24. h4 {[%clk 0:01:58]}  Nc5 {[%clk 0:00:45]} 25. Rde1 {[%clk 0:01:21]}  Nxe4 {[%clk 0:00:40]} 26. fxe4 {[%clk 0:01:22]}  f6 {[%clk 0:00:38]} 27. gxf6 {[%clk 0:01:18]}  Kf7 {[%clk 0:00:39]} 28. Rhf1 {[%clk 0:01:16]}  Rxf1 {[%clk 0:00:37]} 29. Rxf1 {[%clk 0:01:16]}  h5 {[%clk 0:00:37]} 30. Ba3 {[%clk 0:01:10]}  Rc8 {[%clk 0:00:30]} 31. Be7 {[%clk 0:00:55]}  Rc4 {[%clk 0:00:30]} 32. Re1 {[%clk 0:00:55]}  Bc8 {[%clk 0:00:29]} 33. Re3 {[%clk 0:00:48]}  Bd7 {[%clk 0:00:29]} 34. Kb2 {[%clk 0:00:46]}  a5 {[%clk 0:00:29]} 35. Ra3 {[%clk 0:00:41]}  a4 {[%clk 0:00:24]} 36. Rc3 {[%clk 0:00:40]}  Rxe4 {[%clk 0:00:24]} 37. Rc7 {[%clk 0:00:40]}  Ke8 {[%clk 0:00:21]} 38. Bc5 {[%clk 0:00:33]}  Rc4 {[%clk 0:00:19]} 39. f7+ {[%clk 0:00:29]}  Kxf7 {[%clk 0:00:20]} 40. Rxd7+ {[%clk 0:00:29]}  Kf6 {[%clk 0:00:18]} 41. Be7+ {[%clk 0:00:27]}  Kf5 {[%clk 0:00:19]} 42. Bg5 {[%clk 0:00:26]}  Rd4 {[%clk 0:00:17]} 43. Kc3 {[%clk 0:00:25]}  Rc4+ {[%clk 0:00:17]} 44. Kd3 {[%clk 0:00:24]}  Rd4+ {[%clk 0:00:17]} 45. Ke2 {[%clk 0:00:24]}  Ke4 {[%clk 0:00:17]} 46. d6 {[%clk 0:00:22]}  Kd5 {[%clk 0:00:16]} 47. Rb7 {[%clk 0:00:17]}  Ke6 {[%clk 0:00:14]} 48. Rxb5 {[%clk 0:00:16]}  Rxd6 {[%clk 0:00:14]} 49. Rb4 {[%clk 0:00:15]}  Rc6 {[%clk 0:00:14]} 50. Kd2 {[%clk 0:00:15]}  Rd6+ {[%clk 0:00:14]} 51. Kc1 {[%clk 0:00:16]}  Ra6 {[%clk 0:00:11]} 52. Kb2 {[%clk 0:00:16]}  Kf5 {[%clk 0:00:11]} 53. Ka3 {[%clk 0:00:16]}  Rc6 {[%clk 0:00:11]} 54. Kb2 {[%clk 0:00:16]}  Ra6 {[%clk 0:00:10]} 55. Ka3 {[%clk 0:00:16]}  Rc6 {[%clk 0:00:10]} 56. c4 {[%clk 0:00:17]}  e4 {[%clk 0:00:10]} 57. Kxa4 {[%clk 0:00:18]}  Kg4 {[%clk 0:00:10]} 58. Kb5 {[%clk 0:00:18]}  Rc8 {[%clk 0:00:09]} 59. c5 {[%clk 0:00:18]}  Kf3 {[%clk 0:00:09]} 60. Rb3+ {[%clk 0:00:19]}  Kf2 {[%clk 0:00:09]} 61. c6 {[%clk 0:00:19]}  Re8 {[%clk 0:00:07]} 62. Kb6 {[%clk 0:00:19]}  e3 {[%clk 0:00:06]} 63. Rxe3 {[%clk 0:00:19]}  Rb8+ {[%clk 0:00:06]} 64. Kc7 {[%clk 0:00:19]}  Rb2 {[%clk 0:00:07]} 65. Kd7 {[%clk 0:00:18]}  Rd2+ {[%clk 0:00:07]} 66. Kc8 {[%clk 0:00:18]}  Rc2 {[%clk 0:00:07]} 67. c7 {[%clk 0:00:19]}  Rxa2 {[%clk 0:00:08]} 68. Kd8 {[%clk 0:00:18]}  Rd2+ {[%clk 0:00:09]} 69. Kc8 {[%clk 0:00:18]}  Rc2 {[%clk 0:00:09]} 70. Re6 {[%clk 0:00:18]}  Kf3 {[%clk 0:00:09]} 71. Rxg6 {[%clk 0:00:18]}  Kg4 {[%clk 0:00:08]} 72. Kd7 {[%clk 0:00:18]}  Kf5 {[%clk 0:00:06]} 73. Rd6 {[%clk 0:00:18]}  Kg4 {[%clk 0:00:04]} 74. c8=Q {[%clk 0:00:17]}  Rxc8 {[%clk 0:00:05]} 75. Kxc8 {[%clk 0:00:18]}  Kf5 {[%clk 0:00:06]} 76. Kd7 {[%clk 0:00:19]}  Kg4 {[%clk 0:00:06]} 77. Ke6 {[%clk 0:00:19]}  Kh3 {[%clk 0:00:07]} 78. Kf6 {[%clk 0:00:19]}  Kg4 {[%clk 0:00:07]} 79. Kg6 {[%clk 0:00:20]}  Kh3 {[%clk 0:00:08]} 80. Kxh5 {[%clk 0:00:20]}  Kg3 {[%clk 0:00:08]} 81. Kg6 {[%clk 0:00:21]}  Kg4 {[%clk 0:00:09]} 82. Rf6 {[%clk 0:00:21]}  Kg3 {[%clk 0:00:09]} 83. h5 {[%clk 0:00:22]}  Kg4 {[%clk 0:00:10]} 84. h6 {[%clk 0:00:23]}  Kg3 {[%clk 0:00:11]} 85. h7 {[%clk 0:00:24]}  Kg4 {[%clk 0:00:12]} 86. h8=Q {[%clk 0:00:23]}  Kg3 {[%clk 0:00:13]} 87. Qh4+ {[%clk 0:00:23]}  Kg2 {[%clk 0:00:13]} 88. Rf2+ {[%clk 0:00:24]}  Kg1 {[%clk 0:00:14]} 89. Qh2# {[%clk 0:00:24]} 1-0


[Site "https://www.chess.com"]

[Event "Titled Tuesday Blitz August 1 Early 2023"]
[White "Borgaonkar Akshay"]
[Black "Gomes, Luiz Alexandre de Souza"]
[WhiteFideId "25639110"]
[BlackFideId "2102790"]
[WhiteElo "2574"]
[BlackElo "2361"]
[Result "1-0"]
[Round "2"]
[TimeControl "180+1"]
[Date "2023.08.01"]
[WhiteClock "0:02:46"]
[BlackClock "0:01:40"]
[Board "173"]

1. d4 {[%clk 0:03:00]}  Nf6 {[%clk 0:02:59]} 2. Nc3 {[%clk 0:03:00]}  d5 {[%clk 0:02:59]} 3. Bf4 {[%clk 0:03:00]}  e6 {[%clk 0:02:59]} 4. Nb5 {[%clk 0:02:58]}  Na6 {[%clk 0:02:57]} 5. e3 {[%clk 0:02:58]}  c6 {[%clk 0:02:58]} 6. Nc3 {[%clk 0:02:58]}  Nc7 {[%clk 0:02:58]} 7. Nf3 {[%clk 0:02:58]}  Bd6 {[%clk 0:02:58]} 8. Ne5 {[%clk 0:02:57]}  a6 {[%clk 0:02:55]} 9. Bd3 {[%clk 0:02:58]}  Qe7 {[%clk 0:02:51]} 10. Na4 {[%clk 0:02:55]}  Bd7 {[%clk 0:02:42]} 11. Nb6 {[%clk 0:02:54]}  Rd8 {[%clk 0:02:42]} 12. c4 {[%clk 0:02:49]}  Bc8 {[%clk 0:02:34]} 13. c5 {[%clk 0:02:47]}  Bxe5 {[%clk 0:02:34]} 14. Bxe5 {[%clk 0:02:48]}  g6 {[%clk 0:01:40]} 15. Qf3 {[%clk 0:02:46]} 1-0


[Site "https://www.chess.com"]